Cogmind - Beta 9.3 @@@ ROGUE MODE // 2019.12.17 @ 20:11:55 // Winter2019/RPGLIKE Player: Terminus Result: Destroyed by G-47 Trooper with Particle Gun Performance ------------- Evolutions (1) 500 Regions Visited (3) 600 Robots Destroyed (80) 400 Value Destroyed (1535) 1535 Prototype IDs (3) 60 Alien Tech Used (0) 0 Bonus (257) 257 TOTAL SCORE: 3352 Bonus ------- High Alert Combat Kills 257 Cogmind --------- Core Integrity 0/700 Matter 300/300 Energy 115/265 System Corruption 1% Temperature Cool (9) Movement Flying (37) Location -9/Materials Parts ------- > --- POWER (1) -------- Improved Ion Engine > --- PROPULSION (3) --- Flight Unit Flight Unit Flight Unit > --- UTILITY (6) ------ Cooling System Improved Signal Interpreter Advanced Targeting Computer Advanced Targeting Computer Armor Integrity Analyzer Hacking Suite > --- WEAPON (3) ------- Light EM Pulse Cannon Light EM Pulse Cannon > --- INVENTORY (4) ---- Rocket Launcher Plasma Cutter Peak State ------------ > --- POWER ------------ Improved Ion Engine > --- PROPULSION ------- Flight Unit Flight Unit Flight Unit > --- UTILITY ---------- Improved Heat Sink Cooling System Improved Signal Interpreter Advanced Targeting Computer Advanced Targeting Computer Hacking Suite > --- WEAPON ----------- Light EM Pulse Cannon Light EM Pulse Cannon > --- INVENTORY -------- Rocket Launcher Plasma Cutter [Rating: 25] Favorites ----------- Power Improved Ion Engine Engine Improved Ion Engine Propulsion Flight Unit Flight Unit Flight Unit Utility Advanced Targeting Computer Device Improved Heat Sink Processor Advanced Targeting Computer Hackware Hacking Suite Weapon Light EM Pulse Cannon Energy Gun Heavy EM Pulse Gun Energy Cannon Light EM Pulse Cannon Ballistic Gun Assault Rifle Launcher Rocket Launcher Build | -11 -10 -10 -9 ------- Run | Scr Mat Min Mat Slots Evolved 9 | 4 1 1 3 Power . | . . . . Propulsion 2 | 1 . . 1 Utility 5 | 2 1 1 1 Weapon 2 | 1 . . 1 Parts Attached 28 | 3 5 4 16 Power 5 | 1 . 1 3 Engine 5 | 1 . 1 3 Core . | . . . . Reactor . | . . . . Propulsion 3 | . 1 1 1 Treads . | . . . . Leg . | . . . . Wheel . | . . . . Hover . | . . . . Flight 3 | . 1 1 1 Utility 7 | . 1 . 6 Device 2 | . 1 . 1 Storage . | . . . . Processor 4 | . . . 4 Hackware 1 | . . . 1 Protection . | . . . . Artifact . | . . . . Weapon 13 | 2 3 2 6 Energy Gun 5 | 1 3 1 . Energy Cannon 4 | . . . 4 Ballistic Gun 1 | 1 . . . Ballistic Cannon . | . . . . Launcher 3 | . . 1 2 Special Weapon . | . . . . Impact Weapon . | . . . . Slashing Weapon . | . . . . Piercing Weapon . | . . . . Special Melee Weapon . | . . . . Unidentified Prototypes 1 | . . . 1 Parts Lost . | . . . . Power . | . . . . Propulsion . | . . . . Utility . | . . . . Weapon . | . . . . Highest Loss Streak . | . . . . Average Slot Usage (%) 73 | . 51 55 86 Engine 9 | . 11 9 7 Flight 18 | . 9 13 22 Device 7 | . 4 10 7 Processor 14 | . . . 23 Hackware 4 | . . . 7 Energy Gun 8 | . 21 19 1 Energy Cannon 7 | . . . 12 Launcher 1 | . . 1 1 Naked Turns . | . . . . Heaviest Build 17 | 9 12 12 17 Greatest Support 22 | 13 14 18 22 Greatest Overweight (x) . | . . . . Average Overweight (x) . | . . . . Largest Inventory Capacity 4 | 1 1 2 4 Average Capacity 2 | 1 1 1 2 Most Carried 2 | 1 1 1 2 Average Carried 1 | . . 1 1 Final Capacity 4 | 1 1 2 4 Final Carried 2 | 1 1 1 2 Class Distribution -------------------- 58% | Scavenger-Mutant 41% | Mutant Dominant Class ---------------- Mutant | -10/Materials Mutant | -10/Mines Scavenger-Mutant | -9/Materials Resources | -11 -10 -10 -9 ----------- Run | Scr Mat Min Mat Matter Collected 646 | 230 89 90 237 Remotely . | . . . . Salvage Created 2327 | . 438 78 1811 Parts 131 | . 32 5 94 Haulers Intercepted 7 | . 1 . 6 Recyclers Shooed . | . . . . Parts Field Recycled . | . . . . Retrieved Matter . | . . . . Parts Self-Destructed . | . . . . Prevented . | . . . . Kills | -11 -10 -10 -9 ------- Run | Scr Mat Min Mat Combat Hostiles Destroyed 63 | . 13 16 34 Guns 15 | . 12 1 2 Cannons 18 | . . . 18 AOE 28 | . 1 15 12 Classes Destroyed 10 | . 5 1 4 Worker 1 | . . . 1 Builder 1 | . 1 . . Hauler 7 | . 1 . 6 Recycler 1 | . . . 1 Operator 1 | . . . 1 Watcher 6 | . 1 . 5 Swarmer 21 | . 6 3 12 Grunt 20 | . 7 . 13 Sentry 9 | . . . 9 Assembled 13 | . . 13 . Best Kill Streak 13 | . 6 13 11 Combat Bots Only 13 | . 6 13 8 Max Kills in Single Turn 5 | . 2 5 4 Gunslinging . | . . . . Exploded 5 | . 1 5 3 Melee . | . . . . Uniques/NPCs Destroyed . | . . . . Combat | -11 -10 -10 -9 -------- Run | Scr Mat Min Mat Damage Taken 1517 | . 344 498 675 Core 1249 | . 277 408 564 Absorbed by Shields . | . . . . Redirected to Core 894 | . 214 314 366 Core Remaining (%) 69 | 100 . 38 . Volleys Fired 138 | . 46 10 82 Largest 2 | . 2 2 2 Hottest 112 | . 90 90 112 Shots Fired 246 | . 92 15 139 Gun 116 | . 92 10 14 Cannon 118 | . . . 118 Launcher 12 | . . 5 7 Special . | . . . . Kinetic 13 | . 13 . . Thermal . | . . . . Explosive 12 | . . 5 7 Electromagnetic 221 | . 79 10 132 Robot Hit Streak 38 | . 7 4 38 Robot Miss Streak 5 | . 5 2 3 Penetration Max . | . . . . Secondary Targets 1 | . 1 . . Max Gunslinging Chain 1 | . 1 . . Shots Hit Robots 157 | . 44 8 105 Core Hits 122 | . 17 42 63 Critical Hits 1 | . . . 1 Critical Kills 1 | . . . 1 Critical Parts Destroyed . | . . . . Melee Attacks . | . . . . Impact . | . . . . Slashing . | . . . . Piercing . | . . . . Sneak Attacks . | . . . . Combat Hostiles . | . . . . Follow-up Attacks . | . . . . Damage Inflicted 5085 | . 674 1006 3405 Guns 894 | . 624 102 168 Cannons 2170 | . . . 2170 Explosions 2021 | . 50 904 1067 Melee . | . . . . Ramming . | . . . . Kinetic 103 | . 103 . . Thermal 425 | . 50 103 272 Explosive 1596 | . . 801 795 Electromagnetic 2961 | . 521 102 2338 Impact . | . . . . Slashing . | . . . . Piercing . | . . . . Highest Corruption 1 | . . . 1 Average Corruption 1 | . . . 1 Corruption Purged . | . . . . Effects 5 | . . . 5 Message Errors 3 | . . . 3 Energy Discharges 1 | . . . 1 Targeting Errors 1 | . . . 1 Overload Shots . | . . . . Overflow Damage 131 | . 8 34 89 Projectiles 85 | . . . 85 Explosions 46 | . 8 34 4 Melee . | . . . . Knockbacks . | . . . . Impact . | . . . . Kinetic . | . . . . Secondary . | . . . . Self-Inflicted Damage 73 | . . 34 39 Shots 2 | . . 1 1 Rammed . | . . . . Targets Rammed . | . . . . Kicked . | . . . . Crushed . | . . . . Highest Temperature 29 | . 29 . 3 Average Temperature 12 | . 14 . 2 Received Heat Transfer 311 | . 90 20 201 Siege Activations . | . . . . Robots Corrupted 3 | . . . 3 Combat Hostiles 2 | . . . 2 Parts Fried 15 | . 2 . 13 Impact Corruptions . | . . . . Robots Melted . | . . . . Combat Hostiles . | . . . . Parts Melted . | . . . . Heat Transferred 600 | . 100 150 350 Parts Sabotaged . | . . . . Parts Stolen . | . . . . Parts Stripped . | . . . . Power Chain Reactions 10 | . 2 1 7 Missiles Intercepted . | . . . . Alert | -11 -10 -10 -9 ------- Run | Scr Mat Min Mat Peak Influence 924 | . 381 161 924 Average Influence 382 | . 129 101 539 Maximum Alert Level 3 | . 1 . 3 Low Security (%) 38 | 100 73 100 12 Level 1 16 | . 26 . 15 Level 2 25 | . . . 41 Level 3 19 | . . . 30 Level 4 . | . . . . Level 5 . | . . . . High Security . | . . . . Max Security . | . . . . Squads Dispatched 6 | . 2 . 4 Investigation 4 | . 2 . 2 Extermination . | . . . . Reinforcement 1 | . . . 1 Assault 1 | . . . 1 Garrison . | . . . . Intercept . | . . . . Construction Impeded . | . . . . Haulers Reinforced . | . . . . Stealth | -11 -10 -10 -9 --------- Run | Scr Mat Min Mat Distress Signals 2 | . 1 . 1 Communications Jammed . | . . . . Distress Signals . | . . . . Times Spotted 106 | . 19 26 61 Peak Tracking Total 19 | . 3 19 7 Tactical Retreats 13 | . 1 2 10 Traps | -11 -10 -10 -9 ------- Run | Scr Mat Min Mat Traps Triggered 1 | . . . 1 Indirectly . | . . . . Trap Hack Attempts . | . . . . Triggered . | . . . . Disarmed . | . . . . Reprogrammed . | . . . . Reused . | . . . . Traps Extracted . | . . . . Installed . | . . . . Triggered . | . . . . Machines | -11 -10 -10 -9 ---------- Run | Scr Mat Min Mat Machines Disabled 5 | . 2 . 3 Max in Single Turn 1 | . 1 . 1 Machines Sabotaged . | . . . . Garrisons Compromised . | . . . . Overloaded Fab Kills . | . . . . Fab Network Shutdowns . | . . . . Hacking | -11 -10 -10 -9 --------- Run | Scr Mat Min Mat Machines Accessed 21 | . 9 . 12 Terminals 17 | . 7 . 10 Fabricators . | . . . . Repair Stations . | . . . . Recycling Units 4 | . 2 . 2 Scanalyzers . | . . . . Garrison Access . | . . . . Total Hacks 60 | . 33 . 27 Successful 42 | . 22 . 20 Failed 18 | . 11 . 7 Catastrophic . | . . . . Database Lockouts . | . . . . Manual 42 | . 24 . 18 Terminals 49 | . 26 . 23 Fabricators . | . . . . Repair Stations . | . . . . Recycling Units 11 | . 7 . 4 Scanalyzers . | . . . . Garrison Access . | . . . . Terminal Hacks 21 | . 11 . 10 Record 1 | . 1 . . Prototype ID Bank 1 | . . . 1 Terminal Index 1 | . 1 . . Alert Level 3 | . . . 3 Unreport Threat 2 | . 1 . 1 Hauler Manifests 2 | . 1 . 1 Zone Layout 11 | . 7 . 4 Fabricator Hacks . | . . . . Repair Station Hacks . | . . . . Recycling Unit Hacks 4 | . 2 . 2 Retrieve Components 4 | . 2 . 2 Scanalyzer . | . . . . Garrison Access Hacks . | . . . . Unauthorized Hacks 40 | . 20 . 20 Terminals 14 | . 7 . 7 Track 1 | . . . 1 Assimilate 1 | . . . 1 Botnet 12 | . 7 . 5 Fabricators . | . . . . Repair Stations . | . . . . Recycling Units 3 | . 2 . 1 Tunnel 3 | . 2 . 1 Scanalyzers . | . . . . Garrison Access . | . . . . Data Cores Recovered 1 | . . . 1 Used . | . . . . Hacking Detections 15 | . 6 . 9 Full Trace Events 2 | . . . 2 Feedback Events 1 | . . . 1 Corruption 1 | . . . 1 Feedback Blocked . | . . . . Robot Schematics Acquired . | . . . . Robots Built . | . . . . Matter . | . . . . Time . | . . . . Total Robot Build Rating . | . . . . Part Schematics Acquired . | . . . . Parts Built . | . . . . Matter . | . . . . Time . | . . . . Total Part Build Rating . | . . . . Parts Repaired . | . . . . Time . | . . . . Parts Recycled . | . . . . Recycled Matter . | . . . . Retrieved Matter . | . . . . Retrieved Components 23 | . 12 . 11 Parts Scanalyzed . | . . . . Part Schematics Acquired . | . . . . Parts Damaged . | . . . . Bothacking | -11 -10 -10 -9 ------------ Run | Scr Mat Min Mat Used RIF Installer . | . . . . Robots Hacked . | . . . . Non-combat . | . . . . Combat . | . . . . Robot Hacks Applied . | . . . . Relay Couplers Released . | . . . . Robots Rewired . | . . . . Allies Hacked . | . . . . Hacks Repelled . | . . . . Allies | -11 -10 -10 -9 -------- Run | Scr Mat Min Mat Total Allies 1 | . . . 1 Largest Group 1 | . . . 1 Highest-Rated Group 10 | . . . 10 Highest-Rated Ally 10 | . . . 10 Total Orders . | . . . . Ally Attacks . | . . . . Total Damage . | . . . . Kills . | . . . . Allies Corrupted . | . . . . Allies Melted . | . . . . Intel | -11 -10 -10 -9 ------- Run | Scr Mat Min Mat Robot Analysis Total . | . . . . Derelict Logs Recovered . | . . . . Drone Launches . | . . . . Drone Recoveries . | . . . . Exploration | -11 -10 -10 -9 ------------- Run | Scr Mat Min Mat Turns Passed 1471 | 21 411 117 922 Spaces Moved 2016 | 29 538 151 1298 Core 119 | 29 90 . . Treads . | . . . . Legs . | . . . . Wheels . | . . . . Hover . | . . . . Flight 1897 | . 448 151 1298 Fastest Speed 34 | 50 40 37 34 Average Speed 38 | 50 41 39 36 Slowest Speed 50 | 50 50 40 37 Overloaded Moves . | . . . . Propulsion Burnouts . | . . . . Robots Hopped 15 | . 3 3 9 Cave-ins Triggered . | . . . . Exploration Rate (%) 54 | 3 85 34 96 Regions Visited 3 Branch Regions 1 Pre-discovered Areas 3 | . 2 . 1 Known Exits Taken . | . . . . Unknown Exits Taken 3 | 1 1 1 . Scrap Searched 2 | . . 2 . Spaces Dug 4 | . . . 4 Terrain Destroyed 102 | . 7 20 75 Melee . | . . . . Projectile . | . . . . AOE 102 | . 7 20 75 Actions | -11 -10 -10 -9 --------- Run | Scr Mat Min Mat Total 2436 | 33 628 188 1587 Wait 225 | 1 20 25 179 Move 1984 | 28 531 145 1280 Hop 14 | . 3 2 9 Pick Up 6 | 1 1 . 4 Fast Attach 17 | 3 3 2 9 Attach . | . . . . Detach . | . . . . Swap 11 | . 2 2 7 Drop 10 | . 3 . 7 Fire 138 | . 46 10 82 Melee . | . . . . Ram . | . . . . Kick . | . . . . Crush . | . . . . Escape Stasis . | . . . . Rewire . | . . . . Trap . | . . . . Miscellaneous 31 | . 19 2 10 Route ------- -11/Scrapyard -10/Materials (discovered 4 exits: *Mat x3 / [*Min]) -10/Mines -9/Materials (discovered 5 exits: *Mat x3 / [*Min x2]) History --------- Turn | Location | Event 1 | -11/Scrapyard | Upgraded with Propulsion slot (x1) 1 | -11/Scrapyard | Upgraded with Utility slot (x2) 1 | -11/Scrapyard | Upgraded with Weapon slot (x1) 13 | -11/Scrapyard | Discovered new exit (range 16) 22 | -11/Scrapyard | Entered Materials 102 | -10/Materials | Discovered new exit (range 16) 161 | -10/Materials | Discovered new exit (range 16) 190 | -10/Materials | Discovered new exit (range 18) 304 | -10/Materials | Build established: Mutant 321 | -10/Materials | Reached level 2 343 | -10/Materials | Discovered new exit (range 4) 385 | -10/Materials | Upgraded with Utility slot (x1) 433 | -10/Materials | Entered Mines 445 | -10/Mines | Assembled infested the area 450 | -10/Mines | Assisted by a Guerilla fighting off Assembled 459 | -10/Mines | Met a Derelict bent on vengeance 478 | -10/Mines | Destroyed 13 combat bots 514 | -10/Mines | Discovered new exit (range 13) 515 | -10/Mines | Core integrity fell below 50% 518 | -10/Mines | Reached level 3 526 | -10/Mines | Upgraded with Utility slot (x1) 550 | -10/Mines | Entered Materials 551 | -9/Materials | Core integrity fell below 50% 552 | -9/Materials | Reached level 4 554 | -9/Materials | Upgraded with Propulsion slot (x1) 677 | -9/Materials | Discovered new exit (range 16) 707 | -9/Materials | Discovered new exit (range 8) 721 | -9/Materials | Reached level 5 750 | -9/Materials | Destroyed 8 combat bots 778 | -9/Materials | Upgraded with Utility slot (x1) 844 | -9/Materials | Discovered new exit (range 16) 912 | -9/Materials | Core integrity fell below 20% 915 | -9/Materials | Discovered new exit (range 10) 954 | -9/Materials | Identified exit to Materials 958 | -9/Materials | Build established: Scavenger-Mutant 980 | -9/Materials | Reached level 6 986 | -9/Materials | Upgraded with Weapon slot (x1) 1350 | -9/Materials | First assault squad dispatched 1370 | -9/Materials | Reached level 7 1409 | -9/Materials | Discovered new exit (range 13) 1472 | -9/Materials | Destroyed by G-47 Trooper with Particle Gun Last Messages --------------- Current Alert Level: 3-K >>Alert(Check) Current Alert Level: 3-K 01431_ Particle Gun fried. 01431_ Lgt. Nuclear Core fried. 01431_ Imp. Heat Sink fried. 01431_ Aluminum Leg fried. 01431_ G-47 Trooper destroyed. 01436_ U-05 Engineer builds a Wall. 01437_ Connecting with Terminal... 01440_ U-05 Engineer builds a Door. 01444_ U-05 Engineer builds a Wall. 01444_ C-30 ARC bursts open, deploying its payload. 01444_ G-47 Trooper unfolds itself. 01444_ G-34 Mercenary unfolds itself. 01444_ M-13 Machinist unfolds itself. 01447_ G-34 Mercenary destroyed. 01452_ Chain reaction triggered in Lgt. Ion Engine. 01452_ S-10 Pest destroyed. 01470_ U-05 Engineer lays Concrete. Map ----- +----------------------------------------------------+ | #???????? ##[ #?????????????????? | | #????????##########%= #?????????????????? | | #?????????????????#= #?????????????????? | | #?????????????????# =%#?????????????????? | | ??????????????????# =%[?????????????????? | | ?????????????????## =%=#????????????????? | | ?????????????????# ! ########?????????? | | ?????????????????# !%* #?????????? | | ?????????????????# [= < #?????????? | | ?????????????????# #?????????? | | ?????????????????# ########?????????? | | ?????????????????#######????????????????? | | ????????????????????????????????????????? | | ?????????????????#???????##?????????????? | | ?????????????????# ????? #?????????????? | | ?????????????????#! """ #?????????????? | | ?????????????????# """"" #?????????????? | | ?????????????????# """"" #?????????????? | | ?????????????????# """"" #?????????????? | | ?????????????????# """ #?????????????? | | ?????????????????# ###########???? | | ?????????????????# # =#???? | | ??????????######## [ # #???? | | ??????????# #######+### #???? | | ??????????# =# #???? | | ??????????# b @; """ """ #???? | | ??????????# g # """ """?????? | | ??????????# g;m######### """ ""??????? | | ############ [%"###???????# ??????? | | # #?#=%*#??????????########??????? | | # """ T #?# #????????????????????????? | | # """ #?# #????????????????????????? | | # """ ### ##???#######??????######## | | # ## ##### ######## """ # | | # """ ## = =%= +[["Y" # | | # """ ## T !=* ##### ## =![[ # | | # """ ## [%! #?### ## !==! # | | # ## [#####|! #?# # # | | #####+###### #########%= ##?# # [[ # | | ### #?##%#! !!!#?#!* #??# + [[ # | | ####["! !! #?# #??# # # | | "%" ="%=!! #?# #??## ## # | | ####="[ ### #???# ## """ # | | ### #?#" # ] ## ???# ## """ # | | ############ # # ??# ## """ # | | ######## # # # #?# ## # | | # # ####### < #?# ######### | | #!! ! *# #[ # #?# # #? | | #! # # #"" ""#?# + #? | | # + + ##"|||"##?# # """ #? | +----------------------------------------------------+ Best States ------------- Heat Dissipation 59 Energy Generation 17 Energy Capacity 265 Matter Stores 300 Matter Capacity 300 Sight Range 16 Terrain Scan Density 10 Evasion (%) 62 Targeting Accuracy 16 Armor Integrity Analysis 33 Offensive Hacking 10 Item Schematics ----------------- None Robot Schematics ------------------ None Fabricated ------------ Nothing Alien Tech Used ----------------- None Achievements -------------- None Challenges ------------ None RPGLIKE | -11 -10 -10 -9 --------- Run | Scr Mat Min Mat Levels Raised 6 | . 1 1 4 XP Earned 12783 | 3000 2190 850 6743 XP Spent 11380 | 2970 1100 1900 5410 Upgrades 20 | 9 1 2 8 Propulsion Slot 2 | 1 . . 1 Utility Slot 5 | 2 1 1 1 Weapon Slot 2 | 1 . . 1 Core Integrity 2 | . . . 2 Heat Dissipation 2 | 2 . . . Energy Generation 1 | . . . 1 Mass Support 2 | 2 . . . Inventory Capacity 4 | 1 . 1 2 Protomatter Created 402 | . 195 24 183 Integrity Restored 595 | . 334 39 222 Core 538 | . 277 39 222 Parts 57 | . 57 . . Protomatter Decayed 134 | . 79 . 55 Game ------ Seed ColdTrackerShockpuncher Manual? 0 Play Time 00:21:22 Cumulative 970.6 hours Start 2019.12.17 @ 19:51:14 End 2019.12.17 @ 20:11:55 Sessions 1 Manual Loads 0 Difficulty Rogue Special Mode Winter2019/RPGLIKE Game No. 310 Rogue 310 Adventurer 0 Explorer 0 Win Type - Total 70 Types 14/6/32/3/1/2/12 Lore% 97 Gallery% 95 Achievement% 82 Wizard Run 0 Options --------- ASCII 0 Keyboard 0 Movement Numpad Keybinds 0 Fullscreen 1 Font 18/SmallcapsGlow Map View 76x50 Tactical HUD 1 Map Filters NONE Filters NONE Steam 1 RUN: ff332204-cb72-4ed2-8012-b37117cbd3f0